bitfinex-derivatives/quotes_BNBF0:USTF0_20250101
["timestamp","ask_amount","ask_price","bid_price","bid_amount"]
[1735767836434,0.731,707.18,706.97,1.05933215]
[1735767836737,0.8910655,707.17,706.97,1.05933215]
[1735767836937,0.8910655,707.16,706.97,1.05933215]
[1735767837140,0.8910655,707.15,706.97,1.05933215]
[1735767837332,0.731,707.18,706.97,1.05933215]
[1735767837530,0.8910909,707.17,706.97,1.05933215]
[1735767837736,0.89108567,707.16,706.91,1.05933215]
[1735767837936,0.89108567,707.15,706.91,1.05933215]
[1735767838138,0.89108934,707.14,706.91,1.05933215]
[1735767838338,0.731,707.18,706.91,1.05933215]
[1735767838539,0.89111501,707.17,706.91,1.05933215]
[1735767838735,0.89111501,707.16,706.92,1.05933215]
[1735767838932,0.89111501,707.15,706.92,1.05933215]
[1735767839137,0.731,707.18,706.92,1.05933215]
[1735767839333,0.89109061,707.17,706.92,1.05933215]
[1735767839538,0.89109061,707.16,706.92,1.05933215]
[1735767839738,0.89109061,707.15,706.91,1.05933215]
[1735767839939,0.731,707.18,706.91,1.05933215]
[1735767840141,0.89110006,707.17,706.91,1.05933215]
[1735767840341,0.89110006,707.16,706.91,1.05933215]
[1735767840543,0.731,707.18,706.91,1.05933215]
[1735767840742,0.89111913,707.17,706.91,1.05933215]
[1735767840945,0.731,707.18,706.9,1.05933215]
[1735767841143,0.89111845,707.17,706.9,1.05933215]
[1735767841345,0.89111845,707.16,706.9,1.05933215]
[1735767841545,0.89111845,707.15,706.9,1.05933215]
[1735767841745,0.89111845,707.14,706.9,1.05933215]
[1735767841945,0.89111845,707.13,706.9,1.05933215]
[1735767842246,0.89111845,707.13,706.18,2.16280314]
[1735767842247,1.62211845,707.12,706.86,1.05933215]
[1735767842445,0.731,707.12,706.86,1.05933215]
[1735767843146,0.731,707.12,706.87,1.05933215]
[1735767844949,0.731,707.12,706.85,1.05933215]
[1735767847845,0.731,707.12,706.91,1.05933215]
[1735767848953,0.731,707.12,706.92,1.05933215]
[1735767849951,0.731,707.12,706.95,1.05933215]
[1735767851352,0.731,707.12,706.93,1.05933215]
[1735767852255,0.731,707.12,706.9,1.05933215]
[1735767853254,0.731,707.12,706.55,1.05933215]
[1735767853255,0.731,707.12,706.89,1.05933215]
[1735767854354,0.731,707.12,706.22,2.16280314]
[1735767854355,0.731,707.12,706.97,1.05933215]
[1735767855456,0.731,707.12,706.95,1.05933215]
[1735767858858,0.731,707.12,706.94,1.05933215]
[1735767860357,0.731,707.12,706.74,1.05933215]
[1735767862558,0.731,707.12,706.44,1.05933215]
[1735767862559,0.731,707.12,706.75,1.05933215]
[1735767862961,0.731,707.12,705.9,2.16280314]
[1735767863155,1.47694397,707.41,701.4,2.9050952]
[1735767863361,0.89087803,707.4,705.52,0.28347885]
[1735767863561,0.89087803,707.39,705.52,0.28347885]
[1735767863754,0.89088061,707.38,705.52,0.28347885]
[1735767863958,0.89088061,707.37,705.52,0.28347885]
[1735767864159,0.89088061,707.36,705.52,0.28347885]
[1735767864359,1.62088061,707.35,705.52,0.28347885]
[1735767864559,0.89088061,707.34,705.52,0.28347885]
[1735767864759,0.89088061,707.33,705.52,0.28347885]
[1735767864956,0.89088061,707.32,705.52,0.28347885]
[1735767865159,0.89088061,707.31,705.52,0.28347885]
[1735767865461,0.89088061,707.3,705.52,0.28347885]
[1735767865659,0.89088061,707.29,705.52,0.28347885]
[1735767865860,0.89088061,707.28,705.52,0.28347885]
[1735767866056,0.89088061,707.27,705.52,0.28347885]
[1735767866262,0.73,707.35,705.52,0.28347885]
[1735767866458,0.89083804,707.26,705.52,0.28347885]
[1735767866763,0.89083804,707.25,706.66,1.06059098]
[1735767866962,0.73,707.35,706.66,1.06059098]
[1735767867263,0.89084406,707.24,706.66,1.06059098]
[1735767867661,0.73,707.35,706.66,1.06059098]
[1735767868263,0.73,707.35,705.68,2.16537326]
[1735767868460,0.73,707.35,705.55,0.28346679]
[1735767869659,0.73,707.35,706.68,1.06081163]
[1735767871871,0.73,707.35,706.61,1.06081163]
[1735767873263,0.73,707.35,706.62,1.06081163]
[1735767874467,0.73,707.35,706.66,1.06081163]
[1735767875269,0.73,707.35,706.68,1.06081163]
[1735767877272,0.89081928,707.34,706.68,1.06081163]
[1735767877472,0.89081928,707.33,706.69,1.06081163]
[1735767877673,0.89081928,707.32,706.69,1.06081163]
[1735767877973,0.89081928,707.31,706.69,1.06081163]
[1735767878168,0.89081928,707.3,706.69,1.06081163]
[1735767878469,0.89081928,707.29,706.69,1.06081163]
[1735767878673,1.47706412,707.32,706.69,1.06081163]
[1735767878875,0.89081149,707.31,706.69,1.06081163]
[1735767879075,0.89081149,707.3,706.69,1.06081163]
[1735767879276,0.89081149,707.29,706.69,1.06081163]
[1735767879471,0.89081149,707.28,706.69,1.06081163]
[1735767879667,0.89081149,707.27,706.69,1.06081163]
[1735767879876,0.89081149,707.26,706.67,1.06081163]
[1735767880074,0.89081149,707.25,706.67,1.06081163]
[1735767880270,0.89081149,707.24,706.67,1.06081163]
[1735767880574,0.89081149,707.23,706.67,1.06081163]
[1735767880773,0.89081149,707.22,706.67,1.06081163]
[1735767880974,0.89081149,707.21,706.67,1.06081163]
[1735767881174,0.89081149,707.2,706.75,1.06081163]
[1735767881368,0.89081149,707.19,706.75,1.06081163]
[1735767881568,1.62181149,707.18,706.75,1.06081163]
[1735767881771,0.89081149,707.17,706.75,1.06081163]
[1735767881972,0.89081149,707.16,706.75,1.06081163]
[1735767882172,0.89081149,707.16,706.35,1.06081163]
[1735767882173,0.89081149,707.15,706.74,1.06081163]
[1735767882370,0.89081149,707.14,706.74,1.06081163]
[1735767882573,0.89081149,707.13,706.74,1.06081163]
[1735767882874,0.89081149,707.12,706.74,1.06081163]
[1735767883073,0.89081149,707.11,706.74,1.06081163]
[1735767883276,0.89081149,707.1,706.74,1.06081163]
[1735767883474,0.89081149,707.09,706.74,1.06081163]
[1735767883675,0.89081149,707.08,706.74,1.06081163]
[1735767883878,0.89081149,707.07,706.74,1.06081163]
[1735767884175,0.89081149,707.06,706.74,1.06081163]
[1735767884375,0.89081149,707.05,706.74,1.06081163]
[1735767884576,0.89081149,707.05,706.12,1.27297396]
[1735767884577,0.89081149,707.04,706.39,1.06081163]
[1735767884770,0.89081149,707.03,706.39,1.06081163]
[1735767884969,0.89081149,707.02,706.39,1.06081163]
[1735767885175,0.89081149,707.01,706.39,1.06081163]
[1735767885371,0.731,707.18,706.39,1.06081163]
[1735767885572,0.88952378,707.17,706.4,1.06081163]
[1735767885870,0.88952378,707.16,706.4,1.06081163]
[1735767886076,0.88952378,707.15,706.4,1.06081163]
[1735767886272,0.88952378,707.14,706.4,1.06081163]
[1735767886473,0.88952378,707.13,706.4,1.06081163]
[1735767886770,0.88952378,707.12,706.34,1.06081163]
[1735767886974,0.88952378,707.11,706.34,1.06081163]
[1735767887276,0.88952378,707.1,706.34,1.06081163]
[1735767887475,0.88952378,707.09,706.34,1.06081163]
[1735767887676,0.88952378,707.08,706.29,1.06081163]
[1735767887878,0.88952378,707.07,706.29,1.06081163]
[1735767888072,0.88952378,707.06,706.29,1.06081163]
[1735767888376,0.88952378,707.05,706.29,1.06081163]
[1735767888578,0.88952378,707.04,706.29,1.06081163]
[1735767888777,0.88952378,707.03,706.29,1.06081163]
[1735767888976,0.88952378,707.02,706.29,1.06081163]
[1735767889177,0.88952378,707.01,706.29,1.06081163]
[1735767889380,0.88952378,707.0,706.26,1.06081163]
[1735767889677,0.88952378,706.99,706.26,1.06081163]
[1735767889877,0.88952378,706.98,706.26,1.06081163]
[1735767890079,0.88952378,706.97,706.26,1.06081163]
[1735767890275,0.88952378,706.96,706.26,1.06081163]
[1735767890475,0.88952378,706.95,706.26,1.06081163]
[1735767890677,0.88952378,706.94,706.32,1.06081163]
[1735767890880,1.47762335,707.1,706.32,1.06081163]
[1735767891076,0.88789687,707.09,706.32,1.06081163]
[1735767891281,0.88789687,707.08,706.32,1.06081163]
[1735767891482,1.47762335,707.1,706.35,1.06081163]
[1735767891678,0.88756071,707.09,706.35,1.06081163]
[1735767891982,0.88756071,707.08,706.35,1.06081163]
[1735767892279,0.88756071,707.07,706.35,1.06081163]
[1735767892483,0.88756071,707.06,706.33,1.06081163]
[1735767892675,0.88756071,707.05,706.33,1.06081163]
[1735767892879,0.88756071,707.04,706.33,1.06081163]
[1735767893077,0.88756071,707.03,706.33,1.06081163]
[1735767893279,1.47762335,707.1,706.33,1.06081163]
[1735767893280,0.88756071,707.02,706.33,1.06081163]
[1735767893480,0.88756071,707.01,706.33,1.06081163]
[1735767893677,0.88756071,707.0,706.33,1.06081163]
[1735767893880,0.88756071,706.99,706.3,1.06081163]
[1735767894078,0.88756071,706.98,706.3,1.06081163]
[1735767894281,0.88756071,706.97,706.3,1.06081163]
[1735767894482,0.88756071,706.96,706.3,1.06081163]
[1735767894683,1.47762335,707.1,706.3,1.06081163]
[1735767894984,0.88705921,707.09,706.32,1.06081163]
[1735767895186,0.88708009,707.08,706.32,1.06081163]
[1735767895378,0.88708009,707.07,706.32,1.06081163]
[1735767895578,0.88708009,707.06,706.32,1.06081163]
[1735767895884,0.88708009,707.05,706.32,1.06081163]
[1735767896085,0.88708009,707.04,706.33,1.06081163]
[1735767896279,0.88708009,707.03,706.33,1.06081163]
[1735767896480,0.88708009,707.02,706.33,1.06081163]
[1735767896682,0.88708009,707.01,706.33,1.06081163]
[1735767896981,0.88708009,707.0,706.33,1.06081163]
[1735767897178,0.88708009,706.99,706.3,1.06081163]
[1735767897378,0.88708009,706.98,706.3,1.06081163]
[1735767897683,1.47762335,707.1,706.3,1.06081163]
[1735767897886,0.88651398,707.09,706.3,1.06081163]
[1735767898079,0.88651398,707.08,706.3,1.06081163]
[1735767898285,0.88651398,707.07,706.3,1.06081163]
[1735767898485,0.88651398,707.06,706.3,1.06081163]
[1735767898784,1.47762335,707.1,706.3,1.06081163]
[1735767898785,0.88651398,707.05,706.3,1.06081163]
[1735767898983,0.88651398,707.04,706.3,1.06081163]
[1735767899183,0.88651398,707.03,706.3,1.06081163]
[1735767899385,0.88651398,707.02,706.3,1.06081163]
[1735767899586,0.88651398,707.01,706.3,1.06081163]
[1735767899782,0.88651398,707.0,706.3,1.06081163]
[1735767899989,1.47777499,707.01,706.3,1.06081163]
[1735767900288,1.47765995,707.1,706.3,1.06081163]
[1735767900486,0.88641986,707.09,706.3,1.06081163]
[1735767900786,0.88641986,707.08,706.3,1.06081163]
[1735767900986,0.88641986,707.07,706.3,1.06081163]
[1735767901186,0.88641986,707.06,706.3,1.06081163]
[1735767901382,0.88641986,707.05,706.36,1.06081163]
[1735767901586,1.47765995,707.1,706.36,1.06081163]
[1735767901787,0.88643502,707.09,706.36,1.06081163]
[1735767901988,0.88643502,707.08,706.36,1.06081163]
[1735767902188,0.88643502,707.07,706.36,1.06081163]
[1735767902487,0.88643502,707.06,706.38,1.06081163]
[1735767902687,1.47765995,707.1,706.38,1.06081163]
[1735767902886,0.88639136,707.09,706.38,1.06081163]
[1735767903086,0.88639136,707.08,706.38,1.06081163]
[1735767903289,0.8864198,707.07,706.38,1.06081163]
[1735767903487,0.8864198,707.06,706.38,1.06081163]
[1735767903687,0.8864198,707.05,706.45,1.06081163]
[1735767903890,1.47765995,707.1,706.45,1.06081163]
[1735767904184,0.88630118,707.09,706.45,1.06081163]
[1735767904388,0.88630118,707.08,706.45,1.06081163]
[1735767904582,0.88630118,707.07,706.45,1.06081163]
[1735767904787,0.88630118,707.06,706.45,1.06081163]
[1735767904990,1.47753447,707.15,706.45,1.06081163]
[1735767905182,0.88631969,707.14,706.45,1.06081163]
[1735767905386,0.88631969,707.13,706.45,1.06081163]
[1735767905587,0.88631969,707.12,706.45,1.06081163]
[1735767905783,0.88631969,707.11,706.45,1.06081163]
[1735767906082,0.88631969,707.1,706.45,1.06081163]
[1735767906287,0.88631969,707.09,706.45,1.06081163]
[1735767906482,1.47753447,707.15,706.45,1.06081163]
[1735767906691,0.88629707,707.14,706.45,1.06081163]
[1735767906989,0.88629707,707.13,706.47,1.06081163]
[1735767907186,0.88629707,707.12,706.47,1.06081163]
[1735767907381,0.88629707,707.11,706.47,1.06081163]
[1735767907589,1.05866402,707.8,706.47,1.06081163]
[1735767907790,1.47733584,707.26,706.47,1.06081163]
[1735767907992,0.28257368,707.78,706.27,1.06081163]
[1735767907993,0.88646431,707.25,706.48,1.06081163]
[1735767908190,0.88646431,707.24,706.48,1.06081163]
[1735767908390,0.88646431,707.23,706.48,1.06081163]
[1735767908589,1.47721565,707.3,706.48,1.06081163]
[1735767908590,0.88646431,707.22,706.48,1.06081163]
[1735767908791,0.88646431,707.21,706.48,1.06081163]
[1735767908990,1.47721565,707.3,706.48,1.06081163]
[1735767909191,0.88640008,707.29,706.58,1.06081163]
[1735767909390,0.88640008,707.28,706.58,1.06081163]
[1735767909592,0.88640008,707.27,706.58,1.06081163]
[1735767909786,1.47721565,707.3,706.58,1.06081163]
[1735767909995,1.47721565,707.3,706.56,1.06081163]
[1735767910990,0.88623386,707.29,706.57,1.06081163]
[1735767911191,0.88623386,707.28,706.57,1.06081163]
[1735767911391,0.88623386,707.27,706.57,1.06081163]
[1735767911694,0.88623386,707.26,706.57,1.06081163]
[1735767911894,0.88623386,707.25,706.57,1.06081163]
[1735767912094,0.88623386,707.24,706.59,1.06081163]
[1735767912392,0.88644546,707.23,706.59,1.06081163]
[1735767912592,0.88644546,707.22,706.59,1.06081163]
[1735767912793,0.88650223,707.21,706.59,1.06081163]
[1735767912993,0.88650223,707.2,706.59,1.06081163]
[1735767913193,0.88650223,707.19,706.61,1.06081163]
[1735767913387,1.47721565,707.3,706.61,1.06081163]
[1735767913591,0.88665294,707.29,706.61,1.06081163]
[1735767913791,0.88665294,707.28,706.61,1.06081163]
[1735767914089,0.88665294,707.28,706.06,0.73370715]
[1735767914090,0.88665294,707.27,706.62,1.06081163]
[1735767914289,0.88665294,707.26,706.62,1.06081163]
[1735767914488,1.47721565,707.3,706.62,1.06081163]
[1735767914692,0.88678567,707.29,706.62,1.06081163]
[1735767914888,0.88678567,707.28,706.62,1.06081163]
[1735767915091,0.88678567,707.27,706.66,1.06081163]
[1735767915294,0.88678567,707.26,706.66,1.06081163]
[1735767915491,0.88678567,707.25,706.66,1.06081163]
[1735767915693,0.88678567,707.24,706.66,1.06081163]
[1735767915994,0.88678567,707.23,706.66,1.06081163]
[1735767916194,1.47721565,707.3,706.66,1.06081163]
[1735767916394,0.88693612,707.29,706.66,1.06081163]
[1735767916598,0.88693612,707.28,706.66,1.06081163]
[1735767916793,0.88693612,707.27,706.66,1.06081163]
[1735767917095,0.88693612,707.26,706.66,1.06081163]
[1735767917390,0.88693612,707.25,706.66,1.06081163]
[1735767917691,0.88693612,707.24,706.68,1.06081163]
[1735767917994,0.88693612,707.23,706.68,1.06081163]
[1735767918195,0.88707565,707.22,706.68,1.06081163]
[1735767918390,0.28257368,707.78,706.68,1.06081163]
[1735767918391,0.88703327,707.21,706.68,1.06081163]
[1735767918597,1.47706935,707.35,706.08,0.73370715]
[1735767918598,0.88703327,707.2,706.52,1.06081163]
[1735767918794,0.88703327,707.19,706.52,1.06081163]
[1735767918990,1.47706935,707.35,706.52,1.06081163]
[1735767919190,0.88698977,707.34,706.52,1.06081163]
[1735767919395,0.88698977,707.33,706.52,1.06081163]
[1735767919590,0.88698977,707.32,706.5,1.06081163]
[1735767919791,0.88698977,707.31,706.5,1.06081163]
[1735767919995,0.88698977,707.3,706.5,1.06081163]
[1735767920194,0.88698977,707.29,706.5,1.06081163]
[1735767920396,0.88698977,707.28,706.5,1.06081163]
[1735767920596,0.88698977,707.28,706.19,1.06081163]
[1735767920597,0.88698977,707.27,706.45,1.06081163]
[1735767920792,0.88698977,707.26,706.45,1.06081163]
[1735767920996,1.47706935,707.35,706.45,1.06081163]
[1735767920997,0.88698977,707.25,706.45,1.06081163]
[1735767921198,0.88698977,707.24,706.45,1.06081163]
[1735767921493,0.8869905,707.23,706.45,1.06081163]
[1735767921698,0.8869905,707.22,706.45,1.06081163]
[1735767921898,1.47706935,707.35,706.45,1.06081163]
[1735767922099,0.88696823,707.34,706.45,1.06081163]
[1735767922397,0.88696823,707.33,706.45,1.06081163]
[1735767922598,0.88696823,707.32,706.45,1.06081163]
[1735767922798,0.88696823,707.31,706.45,1.06081163]
[1735767923098,0.88696823,707.3,706.41,1.06081163]
[1735767923293,0.88696823,707.29,706.41,1.06081163]
[1735767923497,0.88696823,707.28,706.41,1.06081163]
[1735767923798,0.88696849,707.27,706.41,1.06081163]
[1735767923995,0.88696849,707.26,706.41,1.06081163]
[1735767924202,0.88696849,707.25,706.41,1.06081163]
[1735767924396,0.88696849,707.24,706.41,1.06081163]
[1735767924600,1.47706935,707.35,706.41,1.06081163]
[1735767924801,0.88704312,707.34,706.41,1.06081163]
[1735767925102,0.88704312,707.33,706.41,1.06081163]
[1735767925302,0.88704312,707.32,706.41,1.06081163]
[1735767925604,0.88704312,707.31,706.41,1.06081163]
[1735767925905,0.88704312,707.3,706.41,1.06081163]
[1735767926102,0.88704312,707.29,706.41,1.06081163]
[1735767926303,0.88704312,707.28,706.41,1.06081163]
[1735767926500,0.88704312,707.27,706.51,1.06081163]
[1735767926698,0.88704312,707.26,706.51,1.06081163]
[1735767926901,0.88704312,707.25,706.51,1.06081163]
[1735767927101,0.88704312,707.24,706.51,1.06081163]
[1735767927302,0.88704312,707.23,706.51,1.06081163]
[1735767927502,0.88704312,707.22,706.56,1.06081163]
[1735767927707,0.88704312,707.21,706.56,1.06081163]
[1735767928011,0.88704312,707.2,706.56,1.06081163]
[1735767928306,0.88704312,707.19,706.56,1.06081163]
[1735767928607,0.88704312,707.18,706.56,1.06081163]
[1735767928807,0.88704312,707.17,706.56,1.06081163]
[1735767929007,0.88704312,707.16,706.56,1.06081163]
[1735767929200,0.88704312,707.15,706.56,1.06081163]
[1735767929403,0.88704312,707.14,706.56,1.06081163]
[1735767929603,0.88704312,707.13,706.56,1.06081163]
[1735767929801,0.88704312,707.12,706.58,1.06081163]
[1735767930108,0.88751555,707.11,706.58,1.06081163]
[1735767930408,0.88752304,707.1,706.58,1.06081163]
[1735767930603,1.47724177,707.26,706.58,1.06081163]
[1735767930803,0.88760447,707.25,706.58,1.06081163]
[1735767931007,0.88760447,707.24,706.59,1.06081163]
[1735767931508,0.88760447,707.23,706.59,1.06081163]
[1735767931705,0.88761325,707.22,706.59,1.06081163]
[1735767931903,0.88761325,707.21,706.59,1.06081163]
[1735767932107,1.61761325,707.2,706.65,1.06081163]
[1735767932307,0.88761325,707.19,706.65,1.06081163]
[1735767932508,0.88761325,707.18,706.65,1.06081163]
[1735767932702,0.73,707.2,706.65,1.06081163]
[1735767932703,0.88761325,707.17,706.65,1.06081163]
[1735767932906,0.88761325,707.16,706.65,1.06081163]
[1735767933108,0.88761325,707.15,706.65,1.06081163]
[1735767933309,0.88761325,707.14,706.65,1.06081163]
[1735767933506,0.88761325,707.13,706.68,1.06081163]
[1735767933711,0.73,707.2,706.68,1.06081163]
[1735767933905,0.88773874,707.19,706.68,1.06081163]
[1735767934105,0.88773874,707.18,706.68,1.06081163]
[1735767934308,0.73,707.2,706.68,1.06081163]
[1735767934309,0.88773874,707.17,706.68,1.06081163]
[1735767934510,0.88773874,707.16,706.71,1.06081163]
[1735767934711,0.73,707.2,706.71,1.06081163]
[1735767935909,0.73,707.2,706.65,1.06081163]
[1735767938410,0.73,707.2,706.66,1.06081163]
[1735767939415,0.73,707.2,705.81,2.16582375]
[1735767939416,0.73,707.2,706.68,1.06081163]
[1735767940514,0.73,707.2,706.67,1.06081163]
[1735767941614,0.88784135,707.19,706.67,1.06081163]
[1735767941809,0.73,707.2,706.69,1.06081163]
[1735767942213,0.88778509,707.19,706.69,1.06081163]
[1735767942411,0.88778509,707.18,706.69,1.06081163]
[1735767942613,0.73,707.2,706.69,1.06081163]
[1735767942614,0.88778509,707.17,706.69,1.06081163]
[1735767942811,0.73,707.2,706.69,1.06081163]
[1735767943008,0.88761995,707.19,706.69,1.06081163]
[1735767943212,0.88761995,707.18,706.69,1.06081163]
[1735767943410,0.73,707.2,706.69,1.06081163]
[1735767943611,0.73,707.2,706.52,1.06081163]
[1735767943612,0.88766803,707.19,706.52,1.06081163]
[1735767943810,0.88766803,707.18,706.52,1.06081163]
[1735767944015,0.88766803,707.17,706.52,1.06081163]
[1735767944316,0.88766803,707.16,706.52,1.06081163]
[1735767944516,0.88766803,707.15,706.52,1.06081163]
[1735767944716,0.88766803,707.14,706.52,1.06081163]
[1735767944919,0.88766803,707.13,706.56,1.06081163]
[1735767945118,0.88766803,707.12,706.56,1.06081163]
[1735767945315,0.88766803,707.11,706.56,1.06081163]
[1735767945512,0.73,707.2,706.56,1.06081163]
[1735767945712,0.88780575,707.19,706.56,1.06081163]
[1735767945914,0.88780575,707.18,706.57,1.06081163]
[1735767946119,0.88780575,707.17,706.57,1.06081163]
[1735767946419,0.73,707.2,706.57,1.06081163]
[1735767946617,0.88766657,707.19,706.57,1.06081163]
[1735767946821,0.88766657,707.18,706.57,1.06081163]
[1735767947022,0.73,707.2,706.51,1.06081163]
[1735767947023,0.88766657,707.17,706.51,1.06081163]
[1735767947221,0.88766657,707.16,706.51,1.06081163]
[1735767947423,0.88766657,707.15,706.51,1.06081163]
[1735767947721,0.88766657,707.14,706.51,1.06081163]
[1735767947926,0.73,707.2,706.51,1.06081163]
[1735767947927,0.88766657,707.13,706.51,1.06081163]
[1735767948220,0.88766657,707.12,706.51,1.06081163]
[1735767948421,0.88766657,707.11,706.5,1.06081163]
[1735767948621,0.88766657,707.1,706.5,1.06081163]
[1735767948921,0.88766657,707.09,706.5,1.06081163]
[1735767949122,0.88766657,707.08,706.5,1.06081163]
[1735767949321,0.88766657,707.07,706.5,1.06081163]
[1735767949621,0.88766657,707.06,706.48,1.06081163]
[1735767949815,0.88766657,707.05,706.48,1.06081163]
[1735767950019,0.73,707.2,706.48,1.06081163]
[1735767950219,0.88813529,707.19,706.48,1.06081163]
[1735767950420,0.88813529,707.18,706.48,1.06081163]
[1735767950621,0.88813529,707.17,706.48,1.06081163]
[1735767950822,0.73,707.2,706.46,1.06081163]
[1735767950823,0.88813529,707.16,706.46,1.06081163]
[1735767951121,0.88813529,707.15,706.46,1.06081163]
[1735767951316,0.88813529,707.14,706.46,1.06081163]
[1735767951520,0.88813529,707.13,706.46,1.06081163]
[1735767951821,0.88813529,707.12,706.46,1.06081163]
[1735767952023,0.88813529,707.11,706.61,1.06081163]
[1735767952219,0.88813529,707.1,706.61,1.06081163]
[1735767952414,0.88813529,707.09,706.61,1.06081163]
[1735767952618,0.73,707.2,706.61,1.06081163]
[1735767952818,0.88834733,707.19,706.61,1.06081163]
[1735767953016,0.88834733,707.18,706.61,1.06081163]
[1735767953217,0.88834733,707.17,706.6,1.06081163]
[1735767953419,0.73,707.2,706.6,1.06081163]
[1735767953420,0.88834733,707.16,706.6,1.06081163]
[1735767953616,0.88834733,707.15,706.6,1.06081163]
[1735767953814,0.88834733,707.14,706.6,1.06081163]
[1735767954016,0.88834733,707.13,706.6,1.06081163]
[1735767954214,0.88834733,707.12,706.6,1.06081163]
[1735767954419,0.88834733,707.11,706.6,1.06081163]
[1735767954620,0.88834733,707.1,706.6,1.06081163]
[1735767954818,0.88834733,707.09,706.6,1.06081163]
[1735767955019,0.88834733,707.08,706.6,1.06081163]
[1735767955217,0.88834733,707.07,706.62,1.06081163]
[1735767955417,0.88834733,707.06,706.62,1.06081163]
[1735767955619,0.88834733,707.05,706.62,1.06081163]
[1735767955818,0.88834733,707.04,706.62,1.06081163]
[1735767956022,0.88834733,707.03,706.62,1.06081163]
[1735767956221,0.88834733,707.02,706.62,1.06081163]
[1735767956423,0.88834733,707.01,706.62,1.06081163]
[1735767956625,0.88834733,707.0,706.58,1.06081163]
[1735767956924,1.47738288,707.16,706.58,1.06081163]
[1735767956925,0.88834733,706.99,706.58,1.06081163]
[1735767957227,0.88834733,706.98,706.58,1.06081163]
[1735767957423,1.47738288,707.16,706.58,1.06081163]
[1735767957720,0.88882253,707.15,706.58,1.06081163]
[1735767957924,0.88882253,707.14,706.58,1.06081163]
[1735767958125,0.88882253,707.13,706.58,1.06081163]
[1735767958321,0.88882253,707.12,706.58,1.06081163]
[1735767958521,1.47738288,707.16,706.61,1.06081163]
[1735767958722,0.8889355,707.11,706.61,1.06081163]
[1735767958918,0.8889355,707.1,706.61,1.06081163]
[1735767959221,1.6189355,707.09,706.61,1.06081163]
[1735767959419,0.8889355,707.08,706.61,1.06081163]
[1735767959621,0.8889355,707.07,706.61,1.06081163]
[1735767959825,0.8889355,707.06,706.59,1.06081163]
[1735767960018,0.8889355,707.05,706.59,1.06081163]
[1735767960221,0.8889355,707.04,706.59,1.06081163]
[1735767960418,0.8889355,707.03,706.59,1.06081163]
[1735767960618,0.8889355,707.02,706.59,1.06081163]
[1735767960822,0.73,707.09,706.13,1.27297396]
[1735767960823,0.8889355,707.01,706.5,1.06081163]
[1735767961022,0.8889355,707.0,706.5,1.06081163]
[1735767961222,0.8889355,706.99,706.5,1.06081163]
[1735767961423,0.8889355,706.98,706.5,1.06081163]
[1735767961620,0.8889355,706.97,706.5,1.06081163]
[1735767961822,0.73,707.09,706.5,1.06081163]
[1735767962125,0.8889071,707.08,706.52,1.06081163]
[1735767962422,0.8889071,707.07,706.52,1.06081163]
[1735767962618,0.8889071,707.06,706.52,1.06081163]
[1735767962824,0.8889071,707.05,706.52,1.06081163]
[1735767963024,0.8889071,707.04,706.51,1.06081163]
[1735767963219,0.8889071,707.03,706.51,1.06081163]
[1735767963424,0.8889071,707.02,706.51,1.06081163]
[1735767963623,0.8889071,707.01,706.51,1.06081163]
[1735767963920,0.73,707.09,706.51,1.06081163]
[1735767964125,0.73,707.09,705.8,2.16582375]
[1735767964126,0.88907517,707.08,706.53,1.06081163]
[1735767964423,0.88907517,707.07,706.53,1.06081163]
[1735767964624,0.88907517,707.06,706.53,1.06081163]
[1735767964822,0.88907517,707.05,706.53,1.06081163]
[1735767965024,0.88907517,707.04,706.53,1.06081163]
[1735767965326,0.73,707.09,706.54,1.06081163]
[1735767965621,0.88923053,707.08,706.54,1.06081163]
[1735767965829,0.88923053,707.07,706.54,1.06081163]
[1735767966026,0.88923053,707.06,706.54,1.06081163]
[1735767966226,0.88923053,707.05,706.54,1.06081163]
[1735767966427,0.73,707.09,706.54,1.06081163]
[1735767966629,0.88931307,707.08,706.58,1.06081163]
[1735767966828,0.88931307,707.07,706.58,1.06081163]
[1735767967026,0.88934075,707.06,706.58,1.06081163]
[1735767967227,0.73,707.09,706.58,1.06081163]
[1735767967428,0.88934639,707.08,706.58,1.06081163]
[1735767967628,0.88934639,707.07,706.58,1.06081163]
[1735767967830,0.88934639,707.06,706.63,1.06081163]
[1735767968029,0.88934639,707.05,706.63,1.06081163]
[1735767968228,0.73,707.09,706.63,1.06081163]
[1735767968425,0.88941429,707.08,706.63,1.06081163]
[1735767968629,0.88941429,707.07,706.63,1.06081163]
[1735767968831,0.88941429,707.06,706.63,1.06081163]
[1735767969029,0.73,707.09,706.63,1.06081163]
[1735767969227,0.88934972,707.08,706.63,1.06081163]
[1735767969426,0.88934972,707.07,706.63,1.06081163]
[1735767969625,0.88934972,707.06,706.63,1.06081163]
[1735767969826,0.73,707.09,706.63,1.06081163]
[1735767970029,0.88932259,707.08,706.63,1.06081163]
[1735767970225,0.88932259,707.07,706.63,1.06081163]
[1735767970425,0.88932259,707.06,706.63,1.06081163]
[1735767970623,0.88932259,707.05,706.63,1.06081163]